bitfinex-derivatives/quotes_BTCF0:USTF0_20250903
["timestamp","ask_amount","ask_price","bid_price","bid_amount"]
[1756892217599,1.18660604,111230.0,111220.0,0.42083659]
[1756892220100,1.18660604,111230.0,111220.0,0.42083659]
[1756892220300,1.18656604,111230.0,111220.0,0.42083659]
[1756892220693,0.36524604,111230.0,111220.0,0.42083659]
[1756892220892,1.16404604,111230.0,111220.0,0.42083659]
[1756892221599,0.82341945,111230.0,111220.0,0.08021]
[1756892233604,0.82341945,111230.0,111220.0,0.04525]
[1756892233801,0.00032,111220.0,111210.0,0.45425024]
[1756892233999,0.00042,111220.0,111210.0,0.87039024]
[1756892234199,0.02261945,111220.0,111210.0,0.90592024]
[1756892235104,0.47686969,111220.0,111210.0,0.14256]
[1756892235808,0.47686969,111220.0,111210.0,0.16614]
[1756892236115,0.47686969,111220.0,111210.0,0.20167]
[1756892236308,0.47686969,111220.0,111210.0,0.20267]
[1756892236309,0.02261945,111220.0,111210.0,0.20267]
[1756892236610,0.47686969,111220.0,111210.0,0.20267]
[1756892236810,0.54790025,111220.0,111210.0,0.20167]
[1756892237012,0.54890025,111220.0,111210.0,0.20167]
[1756892237713,0.09465001,111220.0,111210.0,0.20167]
[1756892237909,0.54890025,111220.0,111210.0,0.20167]
[1756892238108,0.54990025,111220.0,111210.0,0.20167]
[1756892240309,0.54990025,111220.0,111210.0,0.08167]
[1756892240710,0.09565001,111220.0,111210.0,0.08167]
[1756892240911,0.54990025,111220.0,111210.0,0.08167]
[1756892244617,0.54990025,111220.0,111210.0,0.04614]
[1756892245619,0.09565001,111220.0,111210.0,0.08167]
[1756892245919,0.54990025,111220.0,111210.0,0.08167]
[1756892246519,0.54990025,111220.0,111210.0,0.04614]
[1756892252225,0.55892009,111220.0,111210.0,0.04614]
[1756892253026,0.54990025,111220.0,111210.0,0.04614]
[1756892254424,0.54990025,111220.0,111210.0,0.08167]
[1756892255321,0.09565001,111220.0,111210.0,0.08167]
[1756892255726,0.83857001,111220.0,111210.0,0.08167]
[1756892256324,0.09565001,111220.0,111210.0,0.08167]
[1756892256624,0.49945001,111220.0,111210.0,0.91592024]
[1756892257430,0.4993136,111220.0,111210.0,0.91592024]
[1756892261527,0.4993136,111220.0,111210.0,0.46167]
[1756892261728,0.4993136,111220.0,111210.0,0.89592024]
[1756892262033,0.4993136,111220.0,111210.0,0.55592024]
[1756892264536,0.4983136,111220.0,111210.0,0.55592024]
[1756892264737,0.4973136,111220.0,111210.0,0.55692024]
[1756892265233,0.4973136,111220.0,111210.0,0.53692024]
[1756892267338,0.0935136,111220.0,111210.0,0.84692024]
[1756892267538,0.0934136,111220.0,111210.0,0.82692024]
[1756892267745,0.0934136,111220.0,111210.0,0.55692024]
[1756892267930,0.0935136,111220.0,111210.0,0.84692024]
[1756892268136,0.0935136,111220.0,111210.0,0.80692024]
[1756892268332,0.0935136,111220.0,111210.0,0.53692024]
[1756892268534,0.0934136,111220.0,111210.0,0.88692024]
[1756892269040,0.0935136,111220.0,111210.0,0.88692024]
[1756892270444,0.0935136,111220.0,111210.0,0.88692024]
[1756892272843,0.0934136,111220.0,111210.0,0.88692024]
[1756892273446,0.0935136,111220.0,111210.0,0.88692024]
[1756892273746,0.0934136,111220.0,111210.0,0.88692024]
[1756892274147,0.02206304,111220.0,111210.0,1.22683324]
[1756892274353,0.42141608,111250.0,111240.0,0.08432]
[1756892274543,0.46493334,111250.0,111240.0,0.08432]
[1756892274737,0.02277334,111250.0,111240.0,0.08432]
[1756892274946,0.84295334,111250.0,111240.0,0.53857024]
[1756892275247,0.84295334,111250.0,111240.0,0.54738205]
[1756892275447,0.84295334,111250.0,111240.0,0.09313181]
[1756892275947,0.84327334,111250.0,111240.0,0.09313181]
[1756892276145,0.84627334,111250.0,111240.0,0.09313181]
[1756892276347,0.84927334,111250.0,111240.0,0.09313181]
[1756892277045,0.84979334,111250.0,111240.0,0.09313181]
[1756892277346,0.84979334,111250.0,111240.0,0.54738205]
[1756892278248,0.84979334,111250.0,111240.0,0.09313181]
[1756892280249,0.02887334,111250.0,111240.0,0.54738205]
[1756892280448,0.84971334,111250.0,111240.0,0.54738205]
[1756892281446,0.84967334,111250.0,111240.0,0.09313181]
[1756892281748,0.84967334,111250.0,111240.0,0.54738205]
[1756892282848,0.02887334,111250.0,111240.0,0.54738205]
[1756892283150,0.006,111250.0,111240.0,1.12738205]
[1756892283449,0.006,111250.0,111240.0,1.44388445]
[1756892284150,0.006,111250.0,111240.0,0.76302051]
[1756892284351,0.006,111250.0,111240.0,1.44388445]
[1756892284554,0.003,111250.0,111240.0,1.44388445]
[1756892285251,0.82096,111260.0,111250.0,0.01487]
[1756892285551,0.8216,111260.0,111250.0,0.76962197]
[1756892286453,0.8226,111260.0,111250.0,0.76962197]
[1756892287651,0.8236,111260.0,111250.0,0.76962197]
[1756892288352,0.8226,111260.0,111250.0,0.76962197]
[1756892289053,0.8216,111260.0,111250.0,0.77062197]
[1756892293255,0.8216,111260.0,111250.0,0.44062197]
[1756892294457,0.8435449,111260.0,111250.0,0.44062197]
[1756892295458,0.8435449,111260.0,111250.0,0.10019]
[1756892295657,0.8435449,111260.0,111250.0,0.79062197]
[1756892299554,0.8435449,111260.0,111250.0,0.12019]
[1756892299763,0.8435449,111260.0,111250.0,0.46062197]
[1756892300060,1.18397687,111260.0,111250.0,0.46062197]
[1756892300960,1.18397687,111260.0,111250.0,0.44062197]
[1756892301353,0.8435449,111260.0,111250.0,0.44062197]
[1756892301554,1.18397687,111260.0,111250.0,0.44062197]
[1756892303161,0.8435449,111260.0,111250.0,0.44062197]
[1756892303363,1.18397687,111260.0,111250.0,0.44062197]
[1756892305067,0.8435449,111260.0,111250.0,0.44062197]
[1756892305365,1.18397687,111260.0,111250.0,0.44062197]
[1756892307056,0.8435449,111260.0,111250.0,0.44062197]
[1756892307259,1.18397687,111260.0,111250.0,0.44062197]
[1756892311066,1.18397687,111260.0,111250.0,0.10019]
[1756892311267,1.18397687,111260.0,111250.0,0.44062197]
[1756892313773,1.18357687,111260.0,111250.0,0.44062197]
[1756892313974,0.0227849,111260.0,111250.0,0.80062197]
[1756892314168,0.8431449,111260.0,111250.0,0.80062197]
[1756892314368,0.0219449,111260.0,111250.0,1.39105394]
[1756892314569,0.0219449,111260.0,111250.0,1.50182356]
[1756892314773,0.02066,111270.0,111260.0,0.1705828]
[1756892314975,0.04258029,111270.0,111260.0,1.20144674]
[1756892315473,0.04258029,111270.0,111260.0,1.11157394]
[1756892315876,0.04358029,111270.0,111260.0,1.20144674]
[1756892316772,0.02156,111270.0,111260.0,2.61223871]
[1756892317074,0.02256,111270.0,111260.0,2.61223871]
[1756892319575,0.02256,111270.0,111260.0,2.27180674]
[1756892321983,0.02256,111270.0,111260.0,2.87603871]
[1756892322376,0.02256,111270.0,111260.0,1.5909428]
[1756892322581,0.02256,111270.0,111260.0,2.61223871]
[1756892331388,0.02256,111270.0,111260.0,2.61191871]
[1756892332180,0.02256,111270.0,111260.0,1.79187871]
[1756892332384,0.02256,111270.0,111260.0,2.61187871]
[1756892333688,0.02256,111270.0,111260.0,1.79187871]
[1756892333889,0.02256,111270.0,111260.0,2.61187871]
[1756892334889,0.02256,111270.0,111260.0,0.7705828]
[1756892335089,0.02256,111270.0,111260.0,0.68071]
[1756892335390,0.02256,111270.0,111260.0,2.52196591]
[1756892335577,0.02256,111270.0,111260.0,2.61183861]
[1756892336690,0.02256,111270.0,111260.0,2.87563861]
[1756892339189,0.02256,111270.0,111260.0,2.62563861]
[1756892339491,0.02256,111270.0,111260.0,2.53576591]
[1756892339686,0.02256,111270.0,111260.0,1.37537394]
[1756892339687,0.27276,111270.0,111260.0,1.37537394]
[1756892340186,0.61319197,111270.0,111260.0,1.03494197]
[1756892340790,0.61383197,111270.0,111260.0,0.71374197]
[1756892340986,0.61383197,111270.0,111260.0,0.37331]
[1756892341193,0.63578907,111270.0,111260.0,0.35]
[1756892341886,0.94558907,111270.0,111260.0,0.11]
[1756892342083,0.0002,111260.0,111250.0,0.03585872]
[1756892342287,0.34127197,111260.0,111250.0,0.36575872]
[1756892342488,0.59127197,111260.0,111250.0,0.70619069]
[1756892342689,0.61323003,111260.0,111250.0,0.70619069]
[1756892342889,0.27279806,111260.0,111250.0,0.75443069]
[1756892343194,0.61323003,111260.0,111250.0,0.41399872]
[1756892343382,0.61323003,111260.0,111250.0,0.75443069]
[1756892343581,0.27279806,111260.0,111250.0,0.41399872]
[1756892343790,0.25084,111260.0,111250.0,0.38976872]
[1756892344095,0.25084,111260.0,111250.0,0.41399872]
[1756892344295,0.25084,111260.0,111250.0,0.41499872]
[1756892344495,0.72682578,111260.0,111250.0,0.39076872]
[1756892344792,0.72682578,111260.0,111250.0,0.36675872]
[1756892344793,1.54674578,111260.0,111250.0,0.36675872]
[1756892344992,1.85674578,111260.0,111250.0,0.06188872]
[1756892345191,1.86559895,111260.0,111250.0,0.06188872]
[1756892345586,1.85674578,111260.0,111250.0,0.06188872]
[1756892346395,1.85674578,111260.0,111250.0,0.02188872]
[1756892347394,1.85674578,111260.0,111250.0,0.02088872]
[1756892347593,1.54874578,111260.0,111250.0,0.02088872]
[1756892347895,1.55985038,111260.0,111250.0,0.02088872]
[1756892348096,1.88985038,111260.0,111250.0,0.02068872]
[1756892351302,1.88965038,111260.0,111230.0,0.0349]
[1756892351502,0.45402692,111250.0,111240.0,0.047]
[1756892351700,1.29602578,111250.0,111240.0,0.077]
[1756892352993,1.29602578,111250.0,111240.0,0.03]
[1756892353400,1.29602578,111250.0,111230.0,0.04639]
[1756892353707,0.45402692,111240.0,111230.0,0.27639]
[1756892354796,0.45402692,111240.0,111230.0,0.27739]
[1756892355605,0.45402692,111240.0,111230.0,0.31352]
[1756892356307,0.45402692,111240.0,111230.0,0.27739]
[1756892356606,1.27410692,111240.0,111230.0,0.27739]
[1756892357199,1.27410692,111240.0,111230.0,0.07739]
[1756892358310,1.27410692,111240.0,111230.0,0.11352]
[1756892358808,1.27410692,111240.0,111230.0,0.07739]
[1756892359010,0.82008,111240.0,111230.0,0.07739]
[1756892359210,0.82008,111240.0,111230.0,0.11352]
[1756892359211,1.27410692,111240.0,111230.0,0.11352]
[1756892360511,1.27414692,111240.0,111230.0,0.11352]
[1756892361007,1.27414692,111240.0,111230.0,0.08352]
[1756892361704,0.45402692,111240.0,111230.0,0.08352]
[1756892361906,1.27414692,111240.0,111230.0,0.08352]
[1756892363413,1.27414692,111240.0,111230.0,0.04739]
[1756892363912,0.45402692,111240.0,111230.0,0.04739]
[1756892364108,0.98146692,111240.0,111230.0,0.08352]
[1756892364305,0.98146692,111240.0,111230.0,0.04739]
[1756892364306,1.05191653,111240.0,111230.0,0.04739]
[1756892364507,1.05191653,111240.0,111230.0,0.001]
[1756892364705,0.61982277,111240.0,111230.0,0.001]
[1756892364909,1.07384969,111240.0,111230.0,0.001]
[1756892365205,1.07484969,111240.0,111210.0,0.49015692]
[1756892365407,1.07594969,111240.0,111220.0,0.08252]
[1756892365706,1.07594969,111240.0,111220.0,0.19252]
[1756892365906,1.07394969,111240.0,111220.0,0.19252]
[1756892366108,1.07794969,111240.0,111220.0,0.19252]
[1756892366914,0.45402692,111230.0,111220.0,0.19252]
[1756892367307,0.45402692,111230.0,111220.0,0.04639]
[1756892367508,0.45402692,111230.0,111220.0,0.08252]
[1756892368115,0.47600052,111230.0,111220.0,0.08252]
[1756892368315,0.47700052,111230.0,111220.0,0.08252]
[1756892368915,0.47800052,111230.0,111220.0,0.08252]
[1756892371417,1.29816052,111230.0,111220.0,0.08252]
[1756892371618,0.0239736,111230.0,111220.0,0.08252]
[1756892371819,0.1628136,111230.0,111220.0,0.08252]
[1756892373015,0.7260136,111230.0,111220.0,0.08252]
[1756892374322,0.7250136,111230.0,111220.0,0.08252]
[1756892374520,0.0219736,111230.0,111220.0,0.08352]
[1756892374820,0.6014536,111230.0,111220.0,0.08352]
[1756892375023,0.6014536,111230.0,111220.0,0.08252]
[1756892375222,0.6014536,111230.0,111220.0,0.08352]
[1756892375718,0.8421736,111230.0,111220.0,0.08352]
[1756892377023,0.0219736,111230.0,111220.0,0.08352]
[1756892377218,0.6014536,111230.0,111220.0,0.08352]
[1756892377621,0.0219736,111230.0,111220.0,0.08352]
[1756892377822,0.6014536,111230.0,111220.0,0.08352]
[1756892378131,0.6014536,111230.0,111220.0,0.53754692]
[1756892378627,0.0219736,111230.0,111220.0,0.08352]
[1756892378824,0.8421736,111230.0,111220.0,0.53754692]
[1756892380526,0.8421736,111230.0,111220.0,0.08352]
[1756892384538,0.89068968,111230.0,111220.0,0.08352]
[1756892388144,0.8421736,111230.0,111220.0,0.08352]
[1756892388542,0.89068968,111230.0,111220.0,0.08352]
[1756892390145,0.8421736,111230.0,111220.0,0.08352]
[1756892391240,0.0219736,111230.0,111220.0,0.08352]
[1756892391447,0.0219736,111230.0,111220.0,0.53754692]
[1756892391448,0.8421336,111230.0,111220.0,0.53754692]
[1756892393245,0.8421336,111230.0,111220.0,0.89754692]
[1756892393442,0.0219736,111230.0,111220.0,0.89754692]
[1756892393647,0.0219736,111230.0,111220.0,1.16754692]
[1756892393848,0.8277736,111230.0,111220.0,1.16754692]
[1756892399146,0.8277736,111230.0,111220.0,0.91754692]
[1756892403458,0.8277736,111230.0,111220.0,1.14482078]
[1756892410250,2.12759046,111230.0,111220.0,0.001]
[1756892410459,2.17759046,111230.0,111220.0,0.001]
[1756892410962,2.18680053,111230.0,111220.0,0.001]
[1756892411658,2.64473332,111230.0,111200.0,0.0001]
[1756892411857,0.68130078,111210.0,111200.0,0.0001]
[1756892412058,1.52335438,111210.0,111200.0,0.0001]
[1756892412258,1.18270399,111210.0,111200.0,0.0001]
[1756892412452,1.18270399,111210.0,111200.0,0.03858]
[1756892413861,1.18270399,111210.0,111200.0,0.03958]
[1756892414062,1.18270399,111210.0,111200.0,0.04058]
[1756892415065,1.18270399,111210.0,111200.0,0.06453]
[1756892415968,0.8420536,111210.0,111200.0,0.06453]
[1756892416169,1.18270399,111210.0,111200.0,0.06453]
[1756892418769,0.8420536,111210.0,111200.0,0.06453]
[1756892418967,0.0219736,111210.0,111200.0,0.44210039]
[1756892419177,0.10388,111210.0,111200.0,1.34275078]
[1756892419476,0.34075039,111220.0,111210.0,0.08548]
[1756892419671,0.87897437,111220.0,111210.0,0.08548]
[1756892420174,0.00931007,111230.0,111210.0,0.67613039]
[1756892420175,0.0001,111230.0,111210.0,0.67613039]
[1756892420371,0.46271279,111230.0,111210.0,0.38921039]
[1756892420575,0.1220624,111230.0,111220.0,0.04856]
[1756892420780,0.9421624,111230.0,111220.0,0.04856]
[1756892421574,1.28281279,111230.0,111220.0,0.04856]
[1756892421775,1.28381279,111230.0,111220.0,0.04856]
[1756892423368,1.28381279,111230.0,111220.0,0.08548]
[1756892423677,0.46361279,111230.0,111220.0,0.08548]
[1756892423876,1.28481279,111230.0,111220.0,0.08548]
[1756892424472,0.9441624,111230.0,111220.0,0.08548]
[1756892424673,0.36461279,111230.0,111220.0,0.42613039]
[1756892424879,1.16285039,111230.0,111220.0,0.08548]
[1756892425078,1.16285039,111230.0,111220.0,0.42613039]
[1756892425283,1.16285039,111230.0,111220.0,0.08548]
[1756892426480,1.16185039,111230.0,111220.0,0.08548]
[1756892427081,1.16185039,111230.0,111220.0,0.42613039]
[1756892427276,0.002,111230.0,111220.0,0.67613039]
[1756892427478,0.002,111230.0,111220.0,1.38678078]
[1756892429584,0.001,111230.0,111220.0,1.38678078]
[1756892430586,0.001,111230.0,111220.0,1.38778078]
[1756892430785,0.7303,111240.0,111230.0,0.08548]
[1756892430985,0.7302,111240.0,111230.0,0.76613039]
[1756892434486,0.75214318,111240.0,111230.0,0.77510121]
[1756892434686,0.7302,111240.0,111230.0,0.77510121]
[1756892440992,0.0001,111250.0,111240.0,0.08321]
[1756892441290,0.84188777,111250.0,111240.0,1.08451078]
[1756892442197,0.84288777,111250.0,111240.0,1.08451078]
[1756892443097,0.84188777,111250.0,111240.0,1.08451078]
[1756892443494,0.81996,111250.0,111240.0,0.74386039]
[1756892444086,0.84189014,111250.0,111240.0,0.74386039]
[1756892444593,0.81996,111250.0,111240.0,0.74386039]
[1756892445402,2.79083303,111260.0,111250.0,0.09766]
[1756892445603,0.02066,111270.0,111260.0,0.03672]
[1756892445799,1.0328,111270.0,111260.0,0.42412039]
[1756892445996,1.39538192,111270.0,111260.0,0.42412039]
[1756892448700,1.05473153,111270.0,111260.0,0.42412039]
[1756892449004,1.46666084,111270.0,111260.0,0.42412039]
[1756892449805,1.46666084,111270.0,111260.0,0.08347]
[1756892450002,1.12601045,111270.0,111260.0,0.04675]
[1756892450208,1.12601045,111270.0,111260.0,0.08347]
[1756892450505,1.46666084,111270.0,111260.0,0.04675]
[1756892451102,1.71666084,111270.0,111260.0,0.04675]
[1756892451302,1.71666084,111270.0,111250.0,0.43841039]
[1756892451502,0.34065039,111260.0,111250.0,0.43831039]
[1756892452100,0.36259457,111260.0,111250.0,0.43831039]
[1756892453208,0.34065039,111260.0,111250.0,0.43831039]
[1756892453403,0.36260069,111260.0,111250.0,0.43831039]
[1756892454610,0.0219503,111260.0,111250.0,0.43831039]
[1756892455109,0.36260069,111260.0,111250.0,0.43831039]
[1756892455322,0.0219503,111260.0,111250.0,0.43831039]
[1756892455518,0.36260069,111260.0,111250.0,0.43831039]
[1756892455916,0.0219503,111260.0,111250.0,0.79831039]
[1756892456118,0.0219503,111260.0,111250.0,1.38896078]
[1756892457213,0.0219503,111260.0,111250.0,0.70766]
[1756892457425,0.0219503,111260.0,111250.0,1.38996078]
[1756892458223,0.0219503,111260.0,111250.0,1.39096078]
[1756892459223,0.0219503,111260.0,111250.0,0.72346]
[1756892459418,0.02066,111270.0,111260.0,0.08347]
[1756892459617,0.02056,111270.0,111260.0,1.13477078]
[1756892459820,0.04252455,111270.0,111260.0,1.38477078]
[1756892460325,0.04252455,111270.0,111260.0,0.70347]
[1756892460620,0.04252455,111270.0,111260.0,0.33347]
[1756892460823,0.04252455,111270.0,111260.0,1.01477078]
[1756892461018,0.04252455,111270.0,111260.0,1.36477078]
[1756892462225,0.04252455,111270.0,111260.0,0.68347]
[1756892462421,0.04252455,111270.0,111260.0,1.36477078]
[1756892462819,0.04252455,111270.0,111260.0,1.11477078]
[1756892463026,0.04252455,111270.0,111260.0,0.76477078]
[1756892463422,0.04252455,111270.0,111260.0,0.08347]
[1756892463624,0.04252455,111270.0,111260.0,1.14477078]
[1756892464315,0.04252455,111270.0,111260.0,0.46347]
[1756892464515,0.04252455,111270.0,111260.0,1.14477078]
[1756892465426,0.04252455,111270.0,111260.0,0.9173177]
[1756892466928,0.04252455,111270.0,111260.0,0.46347]
[1756892467228,0.04252455,111270.0,111260.0,0.9173177]
[1756892469024,0.04252455,111270.0,111260.0,0.48438848]
[1756892469332,0.02056,111270.0,111260.0,0.48438848]
[1756892469522,0.02056,111270.0,111260.0,0.93823618]
[1756892470222,0.02056,111270.0,111260.0,1.20203618]
[1756892470529,0.02056,111270.0,111260.0,1.45203618]
[1756892471124,0.02056,111270.0,111260.0,1.54190848]
[1756892472226,0.02056,111270.0,111260.0,1.45203618]
[1756892472533,0.02056,111270.0,111260.0,1.54190848]
[1756892474426,0.04251868,111270.0,111260.0,1.54190848]
[1756892477136,0.02056,111270.0,111260.0,1.54190848]
[1756892478739,0.02056,111270.0,111260.0,1.45203618]
[1756892479139,0.02056,111270.0,111260.0,1.54190838]
[1756892479533,0.02056,111270.0,111260.0,1.45203618]
[1756892479839,0.02056,111270.0,111260.0,2.27839618]
[1756892480434,0.02056,111270.0,111260.0,2.36826838]
[1756892480738,0.02056,111270.0,111260.0,2.27839618]
[1756892481245,0.02056,111270.0,111260.0,2.36826838]
[1756892482138,0.02056,111270.0,111260.0,2.27839618]
[1756892483135,0.0001,111280.0,111260.0,1.62770068]
[1756892483341,0.0001,111310.0,111300.0,0.06276]
[1756892483342,0.04905296,111310.0,111300.0,0.06276]
[1756892483633,0.37895296,111310.0,111300.0,0.09841]
[1756892483840,0.40091032,111310.0,111300.0,0.09841]
[1756892484538,0.35237736,111310.0,111300.0,0.09841]
[1756892485136,0.35237736,111310.0,111300.0,0.9222577]
[1756892485327,0.35237736,111310.0,111300.0,0.42841]
[1756892485528,0.35237736,111310.0,111300.0,0.09841]
[1756892485740,0.39237736,111310.0,111300.0,0.09841]
[1756892486240,0.39637736,111310.0,111300.0,0.09841]
[1756892486938,0.40137736,111310.0,111300.0,0.09841]
[1756892487338,0.85522506,111310.0,111300.0,0.09841]
[1756892487536,0.40137736,111310.0,111300.0,0.09841]
[1756892488646,0.85522506,111310.0,111300.0,0.09841]
[1756892489131,0.40137736,111310.0,111300.0,0.09841]
[1756892489739,0.85522506,111310.0,111300.0,0.06276]
[1756892489937,0.0001,111300.0,111290.0,1.2101]
[1756892490134,0.00032,111290.0,111280.0,0.63148214]
[1756892490338,0.00042,111290.0,111280.0,0.98138214]
[1756892490643,0.00042,111290.0,111280.0,2.19138214]
[1756892491034,0.0091,111310.0,111290.0,0.04842]
[1756892491241,0.00942,111310.0,111300.0,0.09841]
[1756892491546,0.00942,111310.0,111300.0,0.47841]
[1756892491745,0.03146766,111310.0,111300.0,0.9322577]
[1756892491946,0.03146766,111310.0,111300.0,0.47841]
[1756892492545,0.02746766,111310.0,111300.0,0.47841]
[1756892492744,0.02246766,111310.0,111300.0,0.47841]
[1756892493744,0.03146766,111310.0,111300.0,0.47841]
[1756892494245,0.06146766,111310.0,111300.0,0.47841]
[1756892494639,0.03104766,111310.0,111300.0,0.95352577]
[1756892499135,0.03104766,111310.0,111300.0,0.49967807]
[1756892499337,0.03120766,111310.0,111300.0,0.95352577]
[1756892499539,0.03104766,111310.0,111300.0,0.95352577]
[1756892499733,0.03120766,111310.0,111300.0,0.76347807]
[1756892499942,0.03120766,111310.0,111300.0,1.21732577]
[1756892500143,0.03146766,111310.0,111300.0,0.38347807]
[1756892500347,0.03146766,111310.0,111300.0,0.73347807]
[1756892500747,0.03146766,111310.0,111300.0,1.18732577]
[1756892500949,0.03146766,111310.0,111300.0,0.83732577]
[1756892501548,0.03146766,111310.0,111300.0,0.38347807]
[1756892502249,0.03146766,111310.0,111300.0,1.15732577]
[1756892502749,0.02746766,111310.0,111300.0,1.15732577]
[1756892502948,0.02246766,111310.0,111300.0,1.15732577]
[1756892503144,0.02246766,111310.0,111300.0,0.38347807]
[1756892504054,0.72631536,111310.0,111300.0,0.38347807]
[1756892505253,0.72731536,111310.0,111300.0,0.38347807]
[1756892505550,0.27346766,111310.0,111300.0,0.38347807]
[1756892505751,0.72731536,111310.0,111300.0,0.11967807]
[1756892506352,0.72831536,111310.0,111300.0,0.11967807]
[1756892508052,0.27446766,111310.0,111300.0,0.11967807]
[1756892508655,0.72831536,111310.0,111300.0,0.11967807]
[1756892509157,0.02404766,111310.0,111300.0,0.94352577]
[1756892509544,0.02333906,111310.0,111300.0,0.94352577]
[1756892510154,0.02333906,111310.0,111300.0,1.19352577]
[1756892510949,0.02233906,111310.0,111300.0,1.19352577]
[1756892511358,0.02233906,111310.0,111300.0,0.73967807]
[1756892511558,0.02233906,111310.0,111300.0,1.19352577]
[1756892511856,0.02234544,111310.0,111300.0,1.45732577]
[1756892512056,0.02134544,111310.0,111300.0,1.45732577]
[1756892514453,0.02134544,111310.0,111300.0,1.00347807]
[1756892514756,0.02134544,111310.0,111300.0,1.45732577]
[1756892515553,0.02144544,111310.0,111300.0,1.00347807]
[1756892517563,0.02144544,111310.0,111300.0,0.36967807]
[1756892517763,0.02176544,111310.0,111300.0,0.36967807]
[1756892517962,0.02150544,111310.0,111300.0,0.36967807]
[1756892518762,0.02176544,111310.0,111300.0,0.36967807]
[1756892518962,0.02176544,111310.0,111300.0,0.82352577]
[1756892519161,0.02176544,111310.0,111300.0,0.57352577]
[1756892519361,0.72561314,111310.0,111300.0,0.11967807]
[1756892519562,0.47561314,111310.0,111300.0,0.11967807]
[1756892519761,1.31201314,111310.0,111300.0,0.11967807]
[1756892520164,0.85816544,111310.0,111300.0,0.11967807]
[1756892520365,1.31201314,111310.0,111300.0,0.11967807]
[1756892520765,1.2906677,111310.0,111300.0,0.11967807]
[1756892520966,1.31203332,111310.0,111300.0,0.11967807]
[1756892521467,1.31303332,111310.0,111300.0,0.11967807]
[1756892521665,1.56303332,111310.0,111300.0,0.11967807]
[1756892522266,1.56403332,111310.0,111300.0,0.11967807]
[1756892525269,1.56403332,111310.0,111300.0,0.06276]
[1756892525468,1.98256628,111310.0,111290.0,0.03571]
[1756892525672,0.50280066,111300.0,111290.0,0.02265]
[1756892525862,0.52416628,111300.0,111290.0,0.04735]
[1756892526065,0.47563332,111300.0,111290.0,0.04735]
[1756892526885,0.52416628,111300.0,111290.0,0.04735]
[1756892527084,1.03553332,111300.0,111280.0,0.03571]
[1756892527284,1.2896277,111290.0,111280.0,0.17306]
[1756892527579,1.56752116,111290.0,111280.0,0.13735]
[1756892527974,1.19752116,111290.0,111280.0,0.13735]
[1756892529285,1.19852116,111290.0,111280.0,0.13735]
[1756892529484,0.02278562,111290.0,111280.0,0.17305]
[1756892529682,0.02378562,111290.0,111280.0,0.51342554]
[1756892529882,0.52224116,111290.0,111280.0,0.51342554]
[1756892530385,0.36406116,111290.0,111280.0,0.51342554]
[1756892530585,0.85884562,111290.0,111280.0,0.51342554]
[1756892530786,0.85946562,111290.0,111280.0,0.51342554]
[1756892531182,1.19984116,111290.0,111280.0,0.51342554]
[1756892533587,1.19984116,111290.0,111280.0,0.13735]
[1756892533788,1.19984116,111290.0,111280.0,0.08305]
[1756892534081,1.19984116,111290.0,111280.0,0.04735]
[1756892534286,1.19984116,111290.0,111280.0,0.08305]
[1756892535287,0.85946562,111290.0,111280.0,0.08305]
[1756892535481,1.19984116,111290.0,111280.0,0.08305]
[1756892538191,1.19984116,111290.0,111280.0,0.04735]
[1756892538693,1.19974116,111290.0,111270.0,0.37617554]
[1756892538887,0.34079554,111280.0,111270.0,0.55328554]
[1756892539081,0.34079554,111280.0,111270.0,0.21281]
[1756892539282,0.00042,111280.0,111270.0,0.21281]
[1756892539492,0.34079554,111280.0,111270.0,0.21281]
[1756892539688,0.34079554,111280.0,111270.0,0.55318554]
[1756892540984,0.00042,111280.0,111270.0,0.55318554]
[1756892541290,0.34079554,111280.0,111270.0,0.21281]
[1756892541494,0.34079554,111280.0,111270.0,0.55318554]
[1756892541878,1.17571554,111280.0,111270.0,0.21281]
[1756892542294,1.17571554,111280.0,111270.0,0.55318554]
[1756892542683,1.17571554,111280.0,111270.0,0.21281]
[1756892542880,1.17571554,111280.0,111270.0,0.55318554]
[1756892543285,1.17571554,111280.0,111270.0,0.21281]
[1756892543486,1.51609108,111280.0,111270.0,0.21281]
[1756892543688,1.53764955,111280.0,111270.0,0.21281]
[1756892544590,1.51609108,111280.0,111270.0,0.21281]
[1756892545489,1.51609108,111280.0,111270.0,0.0239]
[1756892545694,1.51609108,111280.0,111270.0,0.04711]
[1756892545996,1.51609108,111280.0,111270.0,0.0239]
[1756892546190,1.51609108,111280.0,111270.0,0.04711]
[1756892546594,1.51609108,111280.0,111270.0,0.08281]
[1756892546797,1.51809108,111280.0,111270.0,0.08281]
[1756892546997,1.52009108,111280.0,111270.0,0.08281]
[1756892549102,0.83934,111280.0,111270.0,0.04711]
[1756892549302,1.54166167,111280.0,111270.0,0.04711]
[1756892549797,0.86091059,111280.0,111270.0,0.04711]
[1756892550001,1.54166167,111280.0,111270.0,0.08281]
[1756892550604,1.54166167,111280.0,111270.0,0.04711]
[1756892550800,0.0001,111270.0,111260.0,0.08291]
[1756892551005,0.34079554,111270.0,111260.0,0.46281]
[1756892551207,0.00042,111270.0,111260.0,0.46281]
[1756892551395,0.00042,111270.0,111260.0,0.80318554]
[1756892551595,0.34079554,111270.0,111260.0,0.80318554]
[1756892551999,1.17491554,111270.0,111260.0,0.46281]
[1756892552201,1.17591554,111270.0,111260.0,0.46281]
[1756892552703,0.34179554,111270.0,111260.0,0.80318554]
[1756892552897,1.17587554,111270.0,111260.0,0.80318554]
[1756892553091,0.00116,111270.0,111260.0,1.14356108]
[1756892553300,0.001,111270.0,111260.0,1.39356108]
[1756892554006,0.002,111270.0,111260.0,1.39356108]
[1756892554193,0.002,111270.0,111260.0,0.71281]
[1756892554394,0.002,111270.0,111260.0,0.46281]
[1756892554395,0.34279554,111270.0,111260.0,0.46281]
[1756892554601,0.34279554,111270.0,111260.0,0.80318554]
[1756892555001,1.17823554,111270.0,111260.0,0.80318554]
[1756892555201,0.34279554,111270.0,111260.0,0.80318554]
[1756892555401,1.17801554,111270.0,111260.0,0.80318554]
[1756892555606,1.17817554,111270.0,111260.0,0.46281]
[1756892555811,1.17827554,111270.0,111260.0,0.80318554]
[1756892556009,1.17819554,111270.0,111260.0,0.80318554]
[1756892556211,1.1998008,111270.0,111260.0,0.80318554]
[1756892556807,0.02402526,111270.0,111260.0,0.80318554]
[1756892557113,1.1996808,111270.0,111260.0,0.80318554]
[1756892557312,0.85930526,111270.0,111260.0,0.80318554]
[1756892557507,1.1996808,111270.0,111260.0,0.80318554]
[1756892558308,1.1996808,111270.0,111260.0,0.46281]